[Event "Cellavision Cup 2018"]
[Site "Lund"]
[Date "2018.08.03"]
[Round "4"]
[White "Ornstein, Axel"]
[Black "Friberg, Hans"]
[Result "1-0"]
[ECO "B04"]
[WhiteElo "2309"]
[BlackElo "2126"]
[Annotator "NA"]
[PlyCount "105"]
[EventDate "2018.08.03"]
[EventType "swiss"]
[EventCountry "SWE"]
[SourceTitle "playchess.com"]
[Source "ChessBase"]
[SourceQuality "1"]
[TimeControl "900+5"]

1. e4 {[%emt 0:00:00]} Nf6 {[%emt 0:00:00]} 2. e5 {[%emt 0:00:05]} Nd5 {[%emt 0:00:00]} 3. d4 {[%emt 0:00:01]} d6 {[%emt 0:00:00]} 4. Nf3 {[%emt 0:00:01]} g6 {[%emt 0:00:02]} 5. Bc4 {[%emt 0:00:08]} dxe5 {[%emt 0:00:11]} 6. Nxe5 {[%emt 0:00:12]} c6 {[%emt 0:00:01]} 7. O-O {[%emt 0:00:30]} Bg7 {[%emt 0:01:09]} 8. Nc3 {[%emt 0:00:11]} O-O {[%emt 0:00:12]} 9. Ne4 {[%emt 0:00:01]} Nd7 {[%emt 0:00:28]} 10. Nxd7 {[%emt 0:00:30]} Bxd7 {[%emt 0:00:09]} 11. Re1 {[%emt 0:00:05]} Bf5 {[%emt 0:01:34]} 12. c3 {[%emt 0:00:03]} Re8 {[%emt 0:00:25]} 13. Bg5 {[%emt 0:00:04]} Bxe4 {[%emt 0:00:43]} 14. Rxe4 {[%emt 0:00:02]} Qd7 {[%emt 0:00:01]} 15. Qd2 {[%emt 0:00:23]} e6 {[%emt 0:00:11]} 16. Rae1 {[%emt 0:00:05]} Rac8 {[%emt 0:00:14]} 17. Bh6 {[%emt 0:00:35]} Bh8 {[%emt 0:00:04]} 18. h4 {[%emt 0:00:01]} Nf6 {[%emt 0:00:26]} 19. R4e2 {[%emt 0:00:02]} c5 {[%emt 0:00:05]} 20. dxc5 {[%emt 0:00:36]} Qxd2 {[%emt 0:00:24]} 21. Rxd2 {[%emt 0:00:03]} Rxc5 {[%emt 0:00:02]} 22. Bb3 {[%emt 0:00:05]} b6 {[%emt 0:01:16]} 23. g3 {[%emt 0:00:54]} Bg7 {[%emt 0:00:42]} 24. Be3 {[%emt 0:00:14]} Rcc8 {[%emt 0:00:31]} 25. Red1 {[%emt 0:00:39]} Ng4 {[%emt 0:00:13]} 26. Rd7 {[%emt 0:00:07]} Nxe3 {[%emt 0:00:02]} 27. fxe3 {[%emt 0:00:01]} Be5 {[%emt 0:00:19]} 28. Kg2 {[%emt 0:00:13]} Rc7 {[%emt 0:00:21]} 29. Rxc7 {[%emt 0:00:06]} Bxc7 {[%emt 0:00:01]} 30. Rd7 {[%emt 0:00:01]} Bb8 {[%emt 0:00:14]} 31. g4 {[%emt 0:00:26]} h6 {[%emt 0:00:13]} 32. Bc4 {[%emt 0:00:10]} Kf8 {[%emt 0:00:34]} 33. Bb5 {[%emt 0:00:04]} Rc8 {[%emt 0:00:06]} 34. c4 {[%emt 0:00:14]} Kg7 {[%emt 0:00:01]} 35. Kf3 {[%emt 0:00:13]} Be5 {[%emt 0:01:08]} 36. Rxa7 {[%emt 0:00:20]} Bxb2 {[%emt 0:00:01]} 37. Bd7 {[%emt 0:00:01]} Rxc4 {[%emt 0:02:22]} 38. Bxe6 {[%emt 0:00:02]} Rc3 {[%emt 0:00:01]} 39. Rxf7+ {[%emt 0:00:15]} Kh8 {[%emt 0:00:02]} 40. Bb3 {[%emt 0:00:15]} Rc6 {[%emt 0:01:01]} 41. g5 {[%emt 0:01:35]} hxg5 {[%emt 0:00:03]} 42. hxg5 {[%emt 0:00:01]} Ba3 {[%emt 0:01:08]} 43. e4 {[%emt 0:00:32]} Bd6 {[%emt 0:00:35]} 44. Rf6 {[%emt 0:00:10]} Kg7 {[%emt 0:00:04]} 45. e5 {[%emt 0:00:18]} Rc3+ {[%emt 0:00:04]} 46. Ke4 {[%emt 0:00:01]} Bc5 {[%emt 0:00:05]} 47. Rf7+ {[%emt 0:00:13]} Kh8 {[%emt 0:00:01]} 48. e6 {[%emt 0:00:01]} Re3+ {[%emt 0:00:10]} 49. Kd5 {[%emt 0:01:16]} Re2 {[%emt 0:00:41]} 50. Kc6 {[%emt 0:00:09]} Re3 {[%emt 0:00:26]} 51. Bd5 {[%emt 0:00:21]} Re5 {[%emt 0:00:05]} 52. a4 {[%emt 0:00:10]} Re1 {[%emt 0:00:20]} 53. a5 {[%emt 0:00:03]} 1-0

[Event "Cellavision Cup 2018"]
[Site "Lund"]
[Date "2018.08.03"]
[Round "4"]
[White "Pantzar, Milton"]
[Black "Petersson, Kjell"]
[Result "0-1"]
[ECO "A80"]
[WhiteElo "2306"]
[BlackElo "1999"]
[Annotator "NA"]
[PlyCount "90"]
[EventDate "2018.08.03"]
[EventType "swiss"]
[EventCountry "SWE"]
[SourceTitle "playchess.com"]
[Source "ChessBase"]
[SourceQuality "1"]
[TimeControl "900+5"]

1. d4 {[%emt 0:00:00]} f5 {[%emt 0:00:00]} 2. b3 {[%emt 0:00:00]} Nf6 {[%emt 0:00:01]} 3. Bb2 {[%emt 0:00:01]} e6 {[%emt 0:00:09]} 4. e3 {[%emt 0:00:12]} b6 {[%emt 0:00:18]} 5. Nc3 {[%emt 0:00:19]} Bb7 {[%emt 0:00:05]} 6. f3 {[%emt 0:00:08]} Be7 {[%emt 0:01:24]} 7. Qd2 {[%emt 0:00:02]} a5 {[%emt 0:00:34]} 8. a3 {[%emt 0:00:05]} d6 {[%emt 0:01:04]} 9. O-O-O {[%emt 0:00:17]} O-O {[%emt 0:00:15]} 10. Kb1 {[%emt 0:00:22]} Nbd7 {[%emt 0:01:36]} 11. Nh3 {[%emt 0:00:09]} Re8 {[%emt 0:01:19]} 12. Bb5 {[%emt 0:01:45]} c6 {[%emt 0:00:10]} 13. Bd3 {[%emt 0:00:02]} b5 {[%emt 0:00:29]} 14. Ne2 {[%emt 0:00:11]} Qb6 {[%emt 0:00:48]} 15. Nef4 {[%emt 0:01:19]} Nf8 {[%emt 0:00:13]} 16. e4 {[%emt 0:00:05]} fxe4 {[%emt 0:00:30]} 17. fxe4 {[%emt 0:00:03]} e5 {[%emt 0:00:23]} 18. Ne2 {[%emt 0:00:27]} Ng6 {[%emt 0:00:21]} 19. Ng5 {[%emt 0:01:15]} c5 {[%emt 0:00:47]} 20. dxc5 {[%emt 0:01:05]} dxc5 {[%emt 0:00:06]} 21. Ng3 {[%emt 0:02:52]} Ba6 {[%emt 0:00:34]} 22. Be2 {[%emt 0:01:39]} c4 {[%emt 0:00:10]} 23. Nf5 {[%emt 0:00:21]} Bf8 {[%emt 0:00:33]} 24. Ne3 {[%emt 0:01:06]} Rac8 {[%emt 0:01:03]} 25. Nd5 {[%emt 0:00:07]} Qc6 {[%emt 0:00:30]} 26. Qxa5 {[%emt 0:00:41]} cxb3 {[%emt 0:00:30]} 27. cxb3 {[%emt 0:00:13]} Qc2+ {[%emt 0:00:04]} 28. Ka1 {[%emt 0:00:25]} Qxe2 {[%emt 0:00:34]} 29. Qxa6 {[%emt 0:00:11]} Nxd5 {[%emt 0:00:29]} 30. Rxd5 {[%emt 0:00:46]} Qxg2 {[%emt 0:00:15]} 31. Rdd1 {[%emt 0:00:57]} Qxg5 {[%emt 0:00:01]} 32. Qxb5 {[%emt 0:00:07]} Qe3 {[%emt 0:00:35]} 33. Rhe1 {[%emt 0:00:05]} Qc5 {[%emt 0:00:01]} 34. Qd7 {[%emt 0:00:12]} Re7 {[%emt 0:00:11]} 35. Qd3 {[%emt 0:00:08]} Nf4 {[%emt 0:00:05]} 36. Qf3 {[%emt 0:00:07]} Ra8 {[%emt 0:00:06]} 37. Kb1 {[%emt 0:00:06]} Rf7 {[%emt 0:00:21]} 38. Rc1 {[%emt 0:00:04]} Qb5 {[%emt 0:00:07]} 39. Qc3 {[%emt 0:00:02]} Qd3+ {[%emt 0:00:02]} 40. Ka2 {[%emt 0:00:08]} Qxc3 {[%emt 0:00:02]} 41. Rxc3 {[%emt 0:00:01]} Rfa7 {[%emt 0:00:06]} 42. a4 {[%emt 0:00:01]} Bb4 {[%emt 0:00:03]} 43. Rec1 {[%emt 0:00:06]} Bxc3 {[%emt 0:00:01]} 44. Rxc3 {[%emt 0:00:00]} Rb8 {[%emt 0:00:07]} 45. Rc5 {[%emt 0:00:07]} Nd3 {[%emt 0:00:04]} 0-1

[Event "Cellavision Cup 2018"]
[Site "Lund"]
[Date "2018.08.03"]
[Round "4"]
[White "Malm Lindberg, Henrik"]
[Black "Ernst, Thomas"]
[Result "0-1"]
[ECO "B84"]
[WhiteElo "2193"]
[BlackElo "2346"]
[Annotator "NA"]
[PlyCount "85"]
[EventDate "2018.08.03"]
[EventType "swiss"]
[EventCountry "SWE"]
[SourceTitle "playchess.com"]
[Source "ChessBase"]
[SourceQuality "1"]
[TimeControl "900+5"]

1. e4 {[%emt 0:00:00]} c5 {[%emt 0:00:00]} 2. Nf3 {[%emt 0:00:00]} d6 {[%emt 0:00:00]} 3. d4 {[%emt 0:00:00]} cxd4 {[%emt 0:00:01]} 4. Nxd4 {[%emt 0:00:00]} Nf6 {[%emt 0:00:02]} 5. Nc3 {[%emt 0:00:00]} a6 {[%emt 0:00:03]} 6. Be2 {[%emt 0:00:01]} e6 {[%emt 0:00:05]} 7. O-O {[%emt 0:00:02]} Be7 {[%emt 0:00:03]} 8. f4 {[%emt 0:00:02]} Nbd7 {[%emt 0:00:32]} 9. g4 {[%emt 0:01:16]} Nc5 {[%emt 0:00:22]} 10. Bf3 {[%emt 0:00:04]} d5 {[%emt 0:00:09]} 11. exd5 {[%emt 0:01:28]} exd5 {[%emt 0:00:09]} 12. Re1 {[%emt 0:00:15]} O-O {[%emt 0:00:12]} 13. g5 {[%emt 0:00:16]} Nfe4 {[%emt 0:00:16]} 14. Nxe4 {[%emt 0:00:15]} dxe4 {[%emt 0:00:13]} 15. Bxe4 {[%emt 0:00:05]} f6 {[%emt 0:00:25]} 16. g6 {[%emt 0:02:11]} Nxe4 {[%emt 0:01:12]} 17. gxh7+ {[%emt 0:00:03]} Kh8 {[%emt 0:00:27]} 18. Rxe4 {[%emt 0:00:02]} f5 {[%emt 0:00:13]} 19. Re1 {[%emt 0:00:16]} Rf6 {[%emt 0:00:55]} 20. Be3 {[%emt 0:01:03]} Rg6+ {[%emt 0:00:09]} 21. Kh1 {[%emt 0:02:26]} b5 {[%emt 0:00:20]} 22. Qf3 {[%emt 0:00:17]} Rb8 {[%emt 0:00:05]} 23. Rg1 {[%emt 0:00:23]} Bb7 {[%emt 0:00:14]} 24. Rxg6 {[%emt 0:00:11]} Bxf3+ {[%emt 0:00:04]} 25. Nxf3 {[%emt 0:00:01]} Qd5 {[%emt 0:00:26]} 26. Rf1 {[%emt 0:00:08]} Bc5 {[%emt 0:00:23]} 27. Bxc5 {[%emt 0:00:13]} Qxc5 {[%emt 0:00:02]} 28. Rg2 {[%emt 0:00:57]} Kxh7 {[%emt 0:00:47]} 29. Ng5+ {[%emt 0:01:13]} Kh8 {[%emt 0:00:05]} 30. Re1 {[%emt 0:02:24]} Qc6 {[%emt 0:01:28]} 31. Re6 {[%emt 0:01:10]} Qd5 {[%emt 0:00:06]} 32. Rd6 {[%emt 0:00:11]} Qxa2 {[%emt 0:00:14]} 33. Rgd2 {[%emt 0:00:16]} g6 {[%emt 0:01:21]} 34. Rxg6 {[%emt 0:00:13]} Qxb2 {[%emt 0:00:10]} 35. Rh6+ {[%emt 0:00:14]} Kg7 {[%emt 0:00:20]} 36. Rh7+ {[%emt 0:00:05]} Kg8 {[%emt 0:00:02]} 37. Rdd7 {[%emt 0:00:08]} Qc1+ {[%emt 0:00:17]} 38. Kg2 {[%emt 0:00:04]} Qxc2+ {[%emt 0:00:02]} 39. Kg1 {[%emt 0:00:09]} Qb1+ {[%emt 0:00:22]} 40. Kg2 {[%emt 0:00:04]} Qb2+ {[%emt 0:00:03]} 41. Kg3 {[%emt 0:00:03]} Rc8 {[%emt 0:00:14]} 42. Nf3 {[%emt 0:00:15]} a5 {[%emt 0:01:14]} 43. Rhe7 0-1

[Event "Cellavision Cup 2018"]
[Site "Lund"]
[Date "2018.08.04"]
[Round "5"]
[White "Ahlander, Bjorn"]
[Black "Ivarsson, Torbjorn"]
[Result "1/2-1/2"]
[ECO "A40"]
[WhiteElo "2433"]
[BlackElo "2156"]
[Annotator "NA"]
[PlyCount "136"]
[EventDate "2018.08.03"]
[EventType "swiss"]
[EventCountry "SWE"]
[SourceTitle "playchess.com"]
[Source "ChessBase"]
[SourceQuality "1"]
[TimeControl "900+5"]

1. d4 {[%emt 0:00:00]} e6 {[%emt 0:00:00]} 2. Nf3 {[%emt 0:00:00]} f5 {[%emt 0:00:00]} 3. g3 {[%emt 0:00:00]} Nf6 {[%emt 0:00:00]} 4. Bg2 {[%emt 0:00:00]} Be7 {[%emt 0:00:00]} 5. b3 {[%emt 0:00:00] A81: Dutch Defence: 2 g3} (5. O-O d5 6. c4 Ne4 7. Nbd2 Nc6 8. e3 h5 9. Ne5 Nxe5 10. dxe5 h4 11. Nxe4 dxe4 12. Qxd8+ Kxd8 13. f3 exf3 14. Bxf3 {0-1 (22) Stella,A (2511)-Rapport,R (2700) Villorba 2018}) 5... O-O {[%emt 0:00:00]} 6. Bb2 {[%emt 0:00:00]} d6 {[%emt 0:00:00]} 7. Nbd2 {[%emt 0:00:00]} Qe8 {[%emt 0:00:00]} 8. e3 {[%emt 0:00:00]} a5 $146 {[%emt 0:00:00]} ({Predecessor:} 8... Bd7 9. Ng5 Nc6 10. O-O Qg6 11. Ngf3 Rae8 12. c4 Bd8 {1-0 (41) Bilek,I-Farago,I Budapest 1968}) 9. a3 {[%emt 0:00:00]} Qh5 {[%emt 0:00:00]} 10. Qe2 {[%emt 0:00:00]} Ne4 {[%emt 0:00:00]} 11. h3 {[%emt 0:00:00]} Nxd2 {[%emt 0:00:00]} 12. Nxd2 {[%emt 0:00:00]} Qxe2+ {[%emt 0:00:00]} 13. Kxe2 {[%emt 0:00:00]} Nd7 {[%emt 0:00:00]} 14. g4 {[%emt 0:00:00]} f4 {[%emt 0:00:00]} 15. exf4 {[%emt 0:00:00]} Rxf4 {[%emt 0:00:00]} 16. Rae1 {[%emt 0:00:00]} Nb6 {[%emt 0:00:00]} 17. Ne4 {[%emt 0:00:00]} a4 {[%emt 0:00:00]} 18. Bc1 {[%emt 0:00:00]} Rf7 {[%emt 0:00:00]} 19. b4 $1 {[%emt 0:00:00]} Bd7 {[%emt 0:00:00]} 20. Nc3 {[%emt 0:00:00]} (20. h4 $15) 20... d5 {[%emt 0:00:00]} 21. Rhf1 {[%emt 0:00:00]} Raf8 {[%emt 0:00:00]} 22. Rd1 {[%emt 0:00:00]} Bd6 {[%emt 0:00:00]} 23. Rd3 {[%emt 0:00:00]} c6 {[%emt 0:00:00]} 24. Rf3 {[%emt 0:00:00]} Rxf3 {[%emt 0:00:58]} 25. Bxf3 {[%emt 0:00:00]} Be8 {[%emt 0:00:00]} 26. Bg2 {[%emt 0:00:00]} Bg6 {[%emt 0:00:00]} 27. Kd1 {[%emt 0:00:00]} e5 {[%emt 0:01:38]} 28. dxe5 {[%emt 0:00:00]} Bxe5 {[%emt 0:00:00]} 29. Ne2 {[%emt 0:00:00]} h6 {[%emt 0:00:57]} 30. f4 {[%emt 0:01:21]} Bf6 {[%emt 0:00:00]} 31. f5 {[%emt 0:02:15]} Bf7 {[%emt 0:00:00]} 32. Nf4 {[%emt 0:01:31]} Re8 {[%emt 0:00:00]} 33. Rf3 {[%emt 0:02:46]} Nc4 {[%emt 0:00:07]} 34. Bf1 {[%emt 0:00:00]} Ne5 {[%emt 0:02:06]} 35. Re3 {[%emt 0:00:41]} Bg5 {[%emt 0:00:46]} 36. Re1 {[%emt 0:00:16]} Kf8 {[%emt 0:01:27]} 37. Be3 {[%emt 0:02:42]} d4 {[%emt 0:01:12]} 38. Bc1 {[%emt 0:02:35]} Nc4 {[%emt 0:03:06]} 39. Ng6+ {[%emt 0:03:05]} Bxg6 {[%emt 0:00:05]} 40. Rxe8+ {[%emt 0:00:00]} Bxe8 {[%emt 0:00:01]} 41. Bxc4 {[%emt 0:00:00]} Bxc1 {[%emt 0:00:06]} 42. Kxc1 {[%emt 0:00:00]} Ke7 {[%emt 0:00:00]} 43. Kd2 {[%emt 0:00:10]} Kd6 {[%emt 0:00:00]} 44. Be6 {[%emt 0:00:38]} b6 {[%emt 0:00:38]} 45. h4 {[%emt 0:00:04]} c5 {[%emt 0:00:51]} 46. c3 {[%emt 0:00:00]} Ke5 {[%emt 0:00:43]} 47. bxc5 {[%emt 0:00:00]} bxc5 {[%emt 0:00:00]} 48. cxd4+ {[%emt 0:00:12]} cxd4 {[%emt 0:00:00]} 49. g5 $2 {[%emt 0:00:00]} (49. Bc8 $11) 49... hxg5 $1 {[%emt 0:00:00]} 50. hxg5 {[%emt 0:00:00]} g6 {[%emt 0:00:08]} 51. Bc4 {[%emt 0:00:15]} gxf5 $2 {[%emt 0:00:13]} (51... Kxf5 52. Kd3 Kxg5 53. Kxd4 Kf4) 52. Kd3 {[%emt 0:00:01]} f4 {[%emt 0:00:00]} 53. Ke2 {[%emt 0:00:15] [#]} Bh5+ {[%emt 0:00:20]} (53... Kf5 $1 $19 54. Kd3 Bd7 55. Kxd4 Kxg5) 54. Kd2 {[%emt 0:00:00] [#]} (54. Ke1 $1 $15) 54... Be8 $2 {[%emt 0:00:18]} (54... f3 $1 $19 {[%cal Rf3f2]} 55. Ke1 Ke4) 55. Ke2 {[%emt 0:00:00] [#]} Bg6 $2 {[%emt 0:01:16]} 56. Kd2 {[%emt 0:00:00]} f3 {[%emt 0:00:59]} 57. Bb5 {[%emt 0:00:00]} Kf4 {[%emt 0:00:24]} 58. Bxa4 {[%emt 0:00:00]} d3 {[%emt 0:00:00]} 59. Bc6 {[%emt 0:00:00]} f2 $19 {[%emt 0:00:04]} (59... Kg3 $142 60. Bb5 f2 61. Bxd3 Bxd3 62. Kxd3 f1=Q+ 63. Kc3 Qc1+ 64. Kd4 Qxg5 65. Kc4 Qc1+ 66. Kb4 Qb2+ 67. Kc4 Qxa3 68. Kd4 Qb4+ 69. Kd5 Kf4 70. Ke6 Qd2 71. Kf7 Qd7+ 72. Kf6 Qe8 73. Kg7 Kf5 74. Kh7 Kf6 75. Kh6 Qh8#) 60. Bg2 {[%emt 0:00:00]} Kxg5 {[%emt 0:00:00]} 61. Ke3 {[%emt 0:00:00]} Kf6 {[%emt 0:00:00]} 62. Kxf2 {[%emt 0:00:00]} Ke5 {[%emt 0:00:00]} 63. Ke3 {[%emt 0:00:00]} Kd6 {[%emt 0:00:00]} 64. Bf1 {[%emt 0:00:00]} Kc5 {[%emt 0:00:00]} 65. Bxd3 {[%emt 0:00:00]} Bxd3 {[%emt 0:00:00]} 66. Kxd3 {[%emt 0:00:00]} Kb5 {[%emt 0:00:00]} 67. Kc3 {[%emt 0:00:00]} Ka4 {[%emt 0:00:00]} 68. Kc4 {[%emt 0:00:00]} Kxa3 {[%emt 0:00:00]} 1/2-1/2

[Event "Cellavision Cup 2018"]
[Site "Lund"]
[Date "2018.08.04"]
[Round "5"]
[White "Ernst, Thomas"]
[Black "Golubka, Petro"]
[Result "1-0"]
[ECO "C18"]
[WhiteElo "2346"]
[BlackElo "2478"]
[Annotator "ChessBase"]
[PlyCount "151"]
[EventDate "2018.08.03"]
[EventType "swiss"]
[EventCountry "SWE"]
[SourceTitle "playchess.com"]
[Source "ChessBase"]
[SourceQuality "1"]
[TimeControl "900+5"]

1. e4 {[%emt 0:00:00]} e6 {[%emt 0:00:00]} 2. d4 {[%emt 0:00:00]} d5 {[%emt 0:00:00]} 3. Nc3 {[%emt 0:00:00]} Bb4 {[%emt 0:00:00]} 4. e5 {[%emt 0:00:00]} c5 {[%emt 0:00:00]} 5. a3 {[%emt 0:00:00]} Bxc3+ {[%emt 0:00:00]} 6. bxc3 {[%emt 0:00:00]} b6 {[%emt 0:00:00]} 7. Qg4 {[%emt 0:00:00]} Kf8 {[%emt 0:00:00]} 8. a4 {[%emt 0:00:00]} Ne7 {[%emt 0:00:00]} 9. Ba3 {[%emt 0:00:00]} Qc7 {[%emt 0:00:00]} 10. Nf3 {[%emt 0:00:00]} Ba6 {[%emt 0:00:00]} 11. Bb5 {[%emt 0:00:00]} Bxb5 {[%emt 0:00:00]} 12. axb5 {[%emt 0:00:00]} Nd7 {[%emt 0:00:00]} 13. O-O {[%emt 0:00:00]} h6 {[%emt 0:00:00]} 14. c4 {[%emt 0:00:00]} dxc4 {[%emt 0:00:00]} 15. dxc5 {[%emt 0:00:00]} bxc5 {[%emt 0:00:00]} 16. Qxc4 {[%emt 0:00:00]} g6 {[%emt 0:00:00]} 17. Nd4 {[%emt 0:00:00]} Kg7 {[%emt 0:00:00]} 18. Qxe6 {[%emt 0:00:00]} Nxe5 {[%emt 0:00:00]} 19. Rfe1 {[%emt 0:00:00]} cxd4 {[%emt 0:00:00]} 20. Qxe7 {[%emt 0:00:00]} Qxe7 {[%emt 0:00:00]} 21. Bxe7 {[%emt 0:00:00]} Nd7 {[%emt 0:00:00]} 22. Red1 {[%emt 0:00:00]} Rhc8 {[%emt 0:00:00]} 23. Rxd4 {[%emt 0:00:00]} Nb6 {[%emt 0:00:00]} 24. Rd2 {[%emt 0:00:00]} Nc4 {[%emt 0:00:00]} 25. Re2 {[%emt 0:00:00]} Rab8 {[%emt 0:00:00]} 26. Rxa7 {[%emt 0:00:00]} Rxb5 {[%emt 0:00:00]} 27. h3 {[%emt 0:00:00]} Ne5 {[%emt 0:00:00]} 28. Bd6 {[%emt 0:00:00]} Nc4 {[%emt 0:00:00]} 29. Bg3 {[%emt 0:00:00]} Rf5 {[%emt 0:00:00]} 30. Ree7 {[%emt 0:00:00]} Rd8 {[%emt 0:00:00]} 31. Rad7 {[%emt 0:00:00]} Rxd7 {[%emt 0:00:00]} 32. Rxd7 {[%emt 0:00:00]} Rb5 {[%emt 0:00:00]} 33. Rc7 {[%emt 0:00:00]} Rb1+ {[%emt 0:00:00]} 34. Kh2 {[%emt 0:00:00]} Rb4 {[%emt 0:00:00]} 35. f3 {[%emt 0:00:00]} Ra4 {[%emt 0:00:00]} 36. Bf2 {[%emt 0:00:00]} Kf6 {[%emt 0:00:00]} 37. Rc6+ {[%emt 0:00:00]} Ke7 {[%emt 0:00:00]} 38. c3 {[%emt 0:00:00]} Kd7 {[%emt 0:00:00]} 39. Rf6 {[%emt 0:00:00]} Ke7 {[%emt 0:00:00]} 40. Rf4 {[%emt 0:00:00]} Nb2 {[%emt 0:00:00]} 41. Rxa4 {[%emt 0:00:00]} Nxa4 {[%emt 0:00:00]} 42. Bd4 {[%emt 0:00:00]} Nb2 {[%emt 0:00:00]} 43. Kg3 {[%emt 0:00:00]} Ke6 {[%emt 0:00:00]} 44. Kf4 {[%emt 0:00:00]} h5 {[%emt 0:05:23]} 45. g4 {[%emt 0:00:00]} hxg4 {[%emt 0:00:00]} 46. fxg4 {[%emt 0:00:00]} f6 {[%emt 0:00:59]} 47. h4 {[%emt 0:00:00]} Nc4 {[%emt 0:00:00]} 48. Ke4 {[%emt 0:00:00]} Nd6+ {[%emt 0:00:00]} 49. Kd3 {[%emt 0:00:00]} Nf7 {[%emt 0:00:00]} 50. c4 {[%emt 0:00:00]} Nh6 {[%emt 0:00:00]} 51. Bxf6 {[%emt 0:00:00]} Nxg4 {[%emt 0:00:00]} 52. Bg5 {[%emt 0:00:00]} Ne5+ {[%emt 0:00:00]} 53. Kd4 {[%emt 0:00:00]} Nc6+ {[%emt 0:00:00]} 54. Kc5 {[%emt 0:00:00]} Ne5 {[%emt 0:00:00]} 55. Kb5 {[%emt 0:00:00]} Kd7 {[%emt 0:00:00]} 56. Bf4 {[%emt 0:00:00]} Nc6 {[%emt 0:00:00]} 57. Kc5 {[%emt 0:00:00]} Ne7 {[%emt 0:00:00]} 58. Bg5 {[%emt 0:00:00]} Nc6 {[%emt 0:00:00]} 59. Kd5 {[%emt 0:00:00]} Na5 {[%emt 0:00:00]} 60. c5 {[%emt 0:05:20]} Nc6 {[%emt 0:00:00]} 61. Be3 {[%emt 0:00:20]} Ne7+ {[%emt 0:00:47]} 62. Ke5 {[%emt 0:00:00]} Kc6 {[%emt 0:00:19]} 63. Bf2 {[%emt 0:00:21]} Nd5 {[%emt 0:00:00]} 64. Bg1 {[%emt 0:02:15]} Ne7 {[%emt 0:00:06]} 65. Kf6 {[%emt 0:00:00]} Kd7 {[%emt 0:00:00]} 66. Bf2 {[%emt 0:01:02]} Ke8 {[%emt 0:00:00]} 67. Ke6 {[%emt 0:00:25]} Nf5 {[%emt 0:00:00]} 68. Kf6 {[%emt 0:01:32]} Ne7 {[%emt 0:00:00]} 69. Kg7 {[%emt 0:00:00]} Kd8 {[%emt 0:00:00]} 70. Kf8 {[%emt 0:01:02]} Nc6 {[%emt 0:00:00]} 71. Kf7 {[%emt 0:00:43]} Ne5+ {[%emt 0:00:00]} 72. Ke6 {[%emt 0:00:06]} Nc6 {[%emt 0:01:07]} 73. Be3 {[%emt 0:00:13]} Ke8 {[%emt 0:00:26]} 74. Bg5 {[%emt 0:00:09]} Nd4+ {[%emt 0:01:05]} 75. Kf6 {[%emt 0:00:16]} Nb3 {[%emt 0:00:00]} 76. Be3 {[%emt 0:00:37]} 1-0

[Event "Cellavision Cup 2018"]
[Site "Lund"]
[Date "2018.08.04"]
[Round "5"]
[White "Olofsson-Dolk, Mattis"]
[Black "Hansen, Torbjorn Ringdal"]
[Result "1/2-1/2"]
[ECO "E71"]
[WhiteElo "2189"]
[BlackElo "2422"]
[Annotator "NA RC"]
[PlyCount "89"]
[EventDate "2018.08.03"]
[EventType "swiss"]
[EventCountry "SWE"]
[SourceTitle "playchess.com"]
[Source "ChessBase"]
[SourceQuality "1"]
[TimeControl "900+5"]

1. d4 {[%emt 0:00:00]} Nf6 {[%emt 0:00:00]} 2. c4 {[%emt 0:00:00]} g6 {[%emt 0:00:00]} 3. Nc3 {[%emt 0:00:00]} Bg7 {[%emt 0:00:00]} 4. e4 {[%emt 0:00:00]} d6 {[%emt 0:00:00]} 5. h3 {[%emt 0:00:00]} O-O {[%emt 0:00:00]} 6. Be3 {[%emt 0:00:00] LiveBook: 734 Games} Na6 {[%emt 0:00:00]} 7. Nf3 {[%emt 0:00:00]} e5 {[%emt 0:00:00]} 8. d5 {[%emt 0:00:00]} Nh5 {[%emt 0:00:00]} 9. Nd2 {[%emt 0:00:00]} Qe8 {[%emt 0:00:00]} 10. Be2 {[%emt 0:00:00] E90: King's Indian: Classical: Early deviations and 6 h3} (10. a3 f5 11. Nb3 b6 12. Qc2 Qe7 13. O-O-O Nc5 14. Be2 Nxb3+ 15. Qxb3 Nf6 16. Qc2 f4 17. Bd2 Bd7 {1-0 (47) Bachmann,A (2577)-Istratescu,A (2671) Graz 2014}) 10... Nf4 {[%emt 0:00:00]} 11. O-O {[%emt 0:00:00]} Nxe2+ {[%emt 0:00:00]} 12. Qxe2 {[%emt 0:00:00]} f5 {[%emt 0:00:00]} 13. exf5 {[%emt 0:00:00]} gxf5 {[%emt 0:00:00]} 14. f4 {[%emt 0:00:00]} Bd7 $146 {[%emt 0:00:00]} ({Predecessor:} 14... e4 15. Nb3 b6 16. Bd4 Qg6 17. a3 Bd7 {1-0 (34) Josse,M (2174)-Meek,S Daventry 2014}) 15. Rae1 {[%emt 0:00:00]} Qg6 {[%emt 0:00:00]} 16. Nf3 {[%emt 0:00:00]} Rae8 {[%emt 0:00:00]} ({Better is} 16... e4 $15 17. Nd4 Nb4) 17. Qd2 {[%emt 0:00:00]} ({Much weaker is} 17. Bxa7 b6 $17) 17... Kh8 {[%emt 0:00:00]} 18. a3 {[%emt 0:00:00]} ({Much weaker is} 18. Bxa7 b6 $17) 18... e4 {[%emt 0:00:00]} 19. Nd4 $1 {[%emt 0:00:00]} Nc5 {[%emt 0:00:00]} 20. Nce2 {[%emt 0:00:00]} (20. Ncb5 $11) 20... Rg8 {[%emt 0:00:00]} 21. b4 {[%emt 0:00:00]} (21. Nc1 $15) 21... Nd3 {[%emt 0:00:00]} 22. Rb1 {[%emt 0:00:00]} Bf6 {[%emt 0:00:00]} 23. Nc1 {[%emt 0:00:00]} Qg7 {[%emt 0:00:00]} 24. Ndb3 {[%emt 0:00:00]} Qh6 $2 {[%emt 0:00:00]} ({Much less strong is} 24... Bc3 {[#]} 25. Qxc3 $1 {[%mdl 512]} Qxc3 26. Bd4+ Qxd4+ 27. Nxd4 $15) (24... Nb2 $19 25. Rxb2 Bxb2) 25. Nxd3 {[%emt 0:00:00]} exd3 {[%emt 0:00:00]} 26. Rf3 $1 {[%emt 0:00:00]} Rg6 {[%emt 0:00:00]} (26... Qg7 $11 {keeps the balance.} 27. g3 h5) 27. Bd4 {[%emt 0:00:00]} ({Better is} 27. Kh2 $16) 27... Bxd4+ {[%emt 0:00:00]} 28. Nxd4 {[%emt 0:00:00]} Reg8 {[%emt 0:00:00]} 29. Rb2 {[%emt 0:00:00]} c5 {[%emt 0:00:00]} 30. dxc6 {[%emt 0:00:00]} bxc6 {[%emt 0:00:00]} 31. Qxd3 {[%emt 0:00:00]} Qg7 {[%emt 0:00:00]} 32. Rff2 {[%emt 0:00:00]} Rg3 {[%emt 0:00:00]} 33. Nf3 {[%emt 0:00:00]} Rxh3 {[%emt 0:00:00]} 34. Rbe2 {[%emt 0:03:05]} Qa1+ {[%emt 0:00:00]} 35. Rf1 {[%emt 0:01:34]} Rh1+ {[%emt 0:00:00]} 36. Kxh1 {[%emt 0:00:00]} Qxf1+ {[%emt 0:00:00]} 37. Ng1 {[%emt 0:00:00]} Qxf4 {[%emt 0:00:00]} 38. Qc3+ {[%emt 0:00:00]} Rg7 {[%emt 0:00:00]} 39. Qf6 {[%emt 0:00:05]} Qg5 {[%emt 0:00:00]} 40. Qf8+ {[%emt 0:00:44]} Rg8 {[%emt 0:00:00]} 41. Qxd6 {[%emt 0:00:04]} Qh4+ {[%emt 0:03:53]} 42. Nh3 {[%emt 0:00:00]} Qxc4 {[%emt 0:00:53]} 43. Qxd7 {[%emt 0:01:23]} Qxe2 {[%emt 0:00:00]} 44. Qd4+ {[%emt 0:00:00]} Rg7 {[%emt 0:00:00]} 45. Qd8+ {[%emt 0:00:00]} 1/2-1/2